bitfinex-derivatives/quotes_BTCF0:USTF0_20260113
["timestamp","ask_amount","ask_price","bid_price","bid_amount"]
[1768315638097,0.002,92692.0,92675.0,0.00958098]
[1768315638098,0.010798,92697.0,92674.0,0.09724]
[1768315638295,0.00937253,92693.0,92660.0,0.107912]
[1768315638507,0.0108,92684.0,92661.0,0.09724]
[1768315638701,0.010799,92689.0,92661.0,0.09724]
[1768315638904,0.09724,92692.0,92668.0,0.010801]
[1768315639099,0.010798,92697.0,92665.0,0.00958098]
[1768315639302,0.00937253,92702.0,92671.0,0.00958098]
[1768315639500,0.002,92693.0,92672.0,0.09724]
[1768315639699,0.01137253,92693.0,92672.0,0.09724]
[1768315639894,0.01137253,92693.0,92661.0,0.02038298]
[1768315640097,0.00937253,92691.0,92660.0,0.002]
[1768315640297,0.0108,92685.0,92660.0,0.012802]
[1768315640494,0.002,92693.0,92675.0,0.00958098]
[1768315640700,0.002,92693.0,92679.0,0.0108]
[1768315641005,0.00937253,92704.0,92677.0,0.0108]
[1768315641197,0.00937253,92704.0,92676.0,0.0972]
[1768315641198,0.002,92697.0,92676.0,0.0972]
[1768315641399,0.00937253,92696.0,92665.0,0.004]
[1768315641600,0.0108,92683.0,92665.0,0.1012]
[1768315641794,0.0108,92680.0,92654.0,0.00958098]
[1768315641999,0.00937253,92685.0,92648.0,0.00991142]
[1768315642203,0.00937253,92685.0,92649.0,0.108004]
[1768315642398,0.010801,92676.0,92649.0,0.108004]
[1768315642601,0.00937253,92685.0,92648.0,0.00991142]
[1768315642801,0.00937253,92668.0,92646.0,0.0972]
[1768315643011,0.02017453,92660.0,92641.0,0.0972]
[1768315643209,0.00937253,92660.0,92642.0,0.010804]
[1768315643506,0.00937253,92660.0,92641.0,0.0972]
[1768315643507,0.010802,92667.0,92641.0,0.0972]
[1768315643707,0.00937253,92669.0,92649.0,0.010804]
[1768315643901,0.0972,92670.0,92655.0,0.010803]
[1768315644102,0.0108,92678.0,92655.0,0.00958098]
[1768315644310,0.0972,92679.0,92655.0,0.00958098]
[1768315644311,0.002,92676.0,92655.0,0.10678098]
[1768315644511,0.002,92676.0,92655.0,0.00958098]
[1768315644710,0.00937253,92673.0,92649.0,0.012804]
[1768315644903,0.00937253,92673.0,92649.0,0.002]
[1768315645123,0.01137253,92670.0,92655.0,0.003]
[1768315645406,0.010802,92667.0,92645.0,0.0972]
[1768315645812,0.00937253,92670.0,92649.0,0.003]
[1768315646702,0.00937253,92670.0,92650.0,0.010804]
[1768315646898,0.010801,92669.0,92649.0,0.003]
[1768315647104,0.00937253,92670.0,92649.0,0.013804]
[1768315647306,0.010802,92667.0,92649.0,0.003]
[1768315647618,0.010802,92665.0,92649.0,0.003]
[1768315647804,0.00937253,92661.0,92634.0,0.0972]
[1768315648002,0.010803,92654.0,92645.0,0.002]
[1768315648207,0.00937253,92658.0,92645.0,0.002]
[1768315648410,0.010803,92657.0,92645.0,0.002]
[1768315648812,0.0972,92661.0,92611.0,0.0194924]
[1768315648813,0.00937253,92642.0,92611.0,0.0194924]
[1768315649014,0.010805,92638.0,92612.0,0.0972]
[1768315649216,0.010805,92638.0,92619.0,0.010807]
[1768315649520,0.00937253,92642.0,92612.0,0.0972]
[1768315649521,0.00937253,92642.0,92617.0,0.0972]
[1768315650006,0.00937253,92642.0,92624.0,0.010807]
[1768315650225,0.010803,92655.0,92631.0,0.010806]
[1768315650409,0.00932558,92662.0,92624.0,0.00958098]
[1768315650410,0.010803,92654.0,92628.0,0.0972]
[1768315650710,0.010803,92654.0,92611.0,0.010808]
[1768315650711,0.00937253,92649.0,92626.0,0.010806]
[1768315650914,0.00937253,92649.0,92628.0,0.010806]
[1768315651106,0.00937253,92649.0,92627.0,0.010806]
[1768315651306,0.00937253,92649.0,92626.0,0.010806]
[1768315651510,0.0992,92657.0,92626.0,0.010806]
[1768315651511,0.002,92657.0,92627.0,0.00958098]
[1768315651705,0.002,92657.0,92643.0,0.010804]
[1768315651906,0.002,92657.0,92646.0,0.010804]
[1768315652209,0.0972,92668.0,92641.0,0.10678098]
[1768315652412,0.0972,92668.0,92652.0,0.010803]
[1768315652620,0.010801,92676.0,92652.0,0.0972]
[1768315652804,0.00937253,92675.0,92653.0,0.010803]
[1768315653010,0.010801,92675.0,92653.0,0.010803]
[1768315653414,0.010801,92670.0,92652.0,0.0972]
[1768315653618,0.16573733,92670.0,92652.0,0.0972]
[1768315653814,0.02017353,92670.0,92652.0,0.0972]
[1768315654018,0.00937253,92670.0,92653.0,0.010803]
[1768315654223,0.010801,92676.0,92652.0,0.0972]
[1768315654410,0.0972,92680.0,92661.0,0.010802]
[1768315654610,0.0972,92687.0,92667.0,0.010802]
[1768315654810,0.00937253,92688.0,92664.0,0.010802]
[1768315655011,0.02017153,92688.0,92664.0,0.010802]
[1768315655223,0.0972,92689.0,92665.0,0.00928444]
[1768315655424,0.0972,92689.0,92671.0,0.010801]
[1768315655625,0.0972,92689.0,92665.0,0.00928444]
[1768315655626,0.0972,92689.0,92669.0,0.010801]
[1768315656224,0.0972,92689.0,92674.0,0.010801]
[1768315656421,0.0972,92689.0,92671.0,0.010801]
[1768315656917,0.0972,92689.0,92665.0,0.00928444]
[1768315657120,0.003,92688.0,92670.0,0.010801]
[1768315657321,0.003,92688.0,92665.0,0.00928444]
[1768315657630,0.003,92688.0,92664.0,0.026802]
[1768315657812,0.0972,92689.0,92656.0,0.00928444]
[1768315657813,0.10942902,92689.0,92665.0,0.0972]
[1768315658013,0.00922902,92679.0,92662.0,0.010802]
[1768315658213,0.00922902,92688.0,92657.0,0.0972]
[1768315658409,0.00922902,92688.0,92658.0,0.108003]
[1768315658611,0.003,92688.0,92671.0,0.010801]
[1768315658815,0.010798,92698.0,92672.0,0.00928444]
[1768315659029,0.00922902,92703.0,92676.0,0.0108]
[1768315659529,0.00922902,92691.0,92672.0,0.010801]
[1768315659728,0.00922902,92691.0,92669.0,0.0972]
[1768315660027,0.010799,92690.0,92668.0,0.010801]
[1768315660328,0.00991873,92699.0,92669.0,0.0972]
[1768315660329,0.009,92688.0,92669.0,0.0972]
[1768315660511,0.009,92688.0,92657.0,0.003]
[1768315660512,0.009,92688.0,92665.0,0.10108796]
[1768315660713,0.009,92688.0,92657.0,0.013803]
[1768315660714,0.0972,92703.0,92671.0,0.00900557]
[1768315660923,0.00922902,92705.0,92676.0,0.01980557]
[1768315661128,0.162058,92758.0,92681.0,0.0108]
[1768315661129,0.00991873,92740.0,92681.0,0.0108]
[1768315661329,0.202,92758.0,92681.0,0.0108]
[1768315661330,0.00991873,92738.0,92698.0,0.00900557]
[1768315661632,0.0972,92741.0,92707.0,0.00928444]
[1768315661817,0.010793,92740.0,92714.0,0.010796]
[1768315662014,0.010793,92740.0,92716.0,0.010796]
[1768315662015,0.01462201,92739.0,92716.0,0.010796]
[1768315662214,0.010793,92740.0,92716.0,0.010796]
[1768315662418,0.010793,92737.0,92716.0,0.00928444]
[1768315662614,0.00991873,92750.0,92716.0,0.00928444]
[1768315662814,0.053912,92836.0,92737.0,0.010793]
[1768315662815,0.01079,92765.0,92737.0,0.010793]
[1768315663019,0.010788,92786.0,92717.0,0.24061836]
[1768315663020,0.010788,92781.0,92750.0,0.1455638]
[1768315663222,0.00991873,92783.0,92751.0,0.0972]
[1768315663432,0.0972,92787.0,92734.0,0.00928444]
[1768315663433,0.00922902,92769.0,92734.0,0.00928444]
[1768315663731,0.00922902,92769.0,92742.0,0.010793]
[1768315663931,0.00922902,92769.0,92737.0,0.00928444]
[1768315664233,0.0972,92787.0,92750.0,0.001]
[1768315664234,0.00922902,92779.0,92750.0,0.001]
[1768315664721,0.00922902,92776.0,92750.0,0.001]
[1768315664915,0.01079,92765.0,92750.0,0.001]
[1768315665241,0.1455638,92770.0,92721.0,0.0607418]
[1768315665242,0.00922902,92767.0,92748.0,0.0972]
[1768315665530,0.00922902,92766.0,92748.0,0.0972]
[1768315665727,0.01079,92765.0,92748.0,0.0972]
[1768315665924,0.01379,92769.0,92748.0,0.0972]
[1768315666128,0.003,92769.0,92748.0,0.11727644]
[1768315666431,0.003,92769.0,92749.0,0.00928444]
[1768315666925,0.0972,92776.0,92749.0,0.02007644]
[1768315667133,0.00922902,92785.0,92759.0,0.010791]
[1768315667329,0.010788,92781.0,92755.0,0.010791]
[1768315667520,0.010788,92781.0,92746.0,0.00900557]
[1768315667521,0.00922902,92760.0,92724.0,0.01829001]
[1768315667722,0.00991873,92771.0,92730.0,0.00928444]
[1768315667723,0.09716,92763.0,92730.0,0.00928444]
[1768315668026,0.010792,92748.0,92728.0,0.09716]
[1768315668224,0.00922902,92759.0,92727.0,0.09716]
[1768315668631,0.00922902,92754.0,92727.0,0.09716]
[1768315668831,0.010792,92751.0,92727.0,0.09716]
[1768315669225,0.1575638,92760.0,92728.0,0.00928444]
[1768315669428,0.010791,92756.0,92729.0,0.00928444]
[1768315669632,0.010792,92751.0,92729.0,0.00928444]
[1768315669827,0.010791,92758.0,92729.0,0.02007844]
[1768315670027,0.00922902,92759.0,92729.0,0.00928444]
[1768315670233,0.010791,92758.0,92729.0,0.00928444]
[1768315670436,0.00922902,92759.0,92729.0,0.00928444]
[1768315670627,0.012,92760.0,92730.0,0.00928444]
[1768315670833,0.001,92759.0,92732.0,0.01829001]
[1768315671030,0.001,92759.0,92727.0,0.10216]
[1768315671031,0.001,92759.0,92744.0,0.010793]
[1768315671234,0.09716,92778.0,92750.0,0.010792]
[1768315671433,0.09716,92778.0,92747.0,0.00928444]
[1768315671625,0.002,92759.0,92737.0,0.02007744]
[1768315671830,0.002,92759.0,92740.0,0.010793]
[1768315672032,0.002,92759.0,92739.0,0.010793]
[1768315672338,0.002,92759.0,92740.0,0.09716]
[1768315672339,0.012791,92759.0,92740.0,0.09716]
[1768315672636,0.012791,92759.0,92729.0,0.017794]
[1768315672637,0.15479282,92750.0,92729.0,0.007]
[1768315672842,0.010792,92747.0,92729.0,0.007]
[1768315673026,0.002,92759.0,92703.0,0.00928444]
[1768315673027,0.00922902,92740.0,92703.0,0.00928444]
[1768315673231,0.010795,92729.0,92703.0,0.00928444]
[1768315673426,0.010795,92726.0,92703.0,0.00928444]
[1768315673626,0.010796,92718.0,92696.0,0.09716]
[1768315673933,0.010795,92723.0,92696.0,0.09716]
[1768315674137,0.010795,92723.0,92711.0,0.009]
[1768315674341,0.010796,92719.0,92698.0,0.09716]
[1768315674730,9.355e-05,92718.0,92698.0,0.09716]
[1768315675333,9.355e-05,92718.0,92701.0,0.010798]
[1768315675538,0.00109355,92718.0,92701.0,0.010798]
[1768315676529,0.00109355,92718.0,92701.0,0.02008244]
[1768315677535,9.355e-05,92718.0,92701.0,0.02008244]
[1768315677736,9.355e-05,92718.0,92684.0,0.00928444]
[1768315677737,0.010796,92714.0,92684.0,0.00928444]
[1768315677934,0.010796,92714.0,92683.0,0.00900557]
[1768315678136,0.00409355,92718.0,92690.0,0.00900557]
[1768315678442,0.00209355,92718.0,92701.0,0.002]
[1768315680033,0.00209355,92718.0,92693.0,0.09716]
[1768315680034,0.003,92714.0,92693.0,0.09716]
[1768315680434,0.003,92714.0,92697.0,0.01829001]
[1768315680940,0.01432257,92718.0,92701.0,0.002]
[1768315681243,0.010796,92716.0,92701.0,0.002]
[1768315681447,0.00509355,92718.0,92701.0,0.002]
[1768315681738,0.00922902,92730.0,92703.0,0.00928444]
[1768315682043,0.00509356,92728.0,92703.0,0.00928444]
[1768315682841,0.00922902,92702.0,92697.0,0.002]
[1768315683141,0.00922902,92702.0,92673.0,0.00539531]
[1768315683142,0.107864,92698.0,92673.0,0.00539531]
[1768315683342,0.010799,92692.0,92673.0,0.00539531]
[1768315683640,0.00922902,92698.0,92673.0,0.00539531]
[1768315683833,0.1455638,92690.0,92673.0,0.00539531]
[1768315684032,0.118663,92689.0,92673.0,0.00539531]
[1768315684341,0.107864,92689.0,92673.0,0.00539531]
[1768315684530,0.05930715,92688.0,92673.0,0.00539531]
[1768315684739,0.09716,92697.0,92673.0,0.00739531]
[1768315685243,0.003,92698.0,92673.0,0.00739531]
[1768315685244,0.003,92698.0,92674.0,0.00370607]
[1768315685440,0.47407294,92747.0,92701.0,0.010798]
[1768315685441,0.00966662,92724.0,92701.0,0.010798]
[1768315685640,0.38868,92765.0,92693.0,0.00370607]
[1768315685641,0.00966662,92736.0,92702.0,0.10086607]
[1768315685843,0.00966662,92736.0,92704.0,0.00370607]
[1768315686045,0.010794,92733.0,92704.0,0.00370607]
[1768315686238,0.00966662,92729.0,92703.0,0.09716]
[1768315686438,0.00966662,92729.0,92703.0,0.07916]
[1768315686746,0.010795,92725.0,92703.0,0.07916]
[1768315687142,0.1455638,92740.0,92703.0,0.07916]
[1768315687143,0.00966662,92727.0,92704.0,0.003]
[1768315687646,0.00966662,92704.0,92664.0,0.1368426]
[1768315687944,0.010799,92694.0,92664.0,0.00359369]
[1768315688129,0.0108,92681.0,92660.0,0.09727382]
[1768315688332,0.00966662,92686.0,92660.0,0.09727382]
[1768315689039,0.09716,92691.0,92661.0,0.010802]
[1768315689238,0.00911668,92702.0,92661.0,0.010802]
[1768315689239,0.00966662,92697.0,92669.0,0.010801]
[1768315689641,0.00509356,92696.0,92665.0,0.010802]
[1768315689841,0.00966662,92697.0,92668.0,0.010801]
[1768315690041,0.010798,92696.0,92668.0,0.010801]
[1768315690236,0.002,92691.0,92668.0,0.010801]
[1768315690745,0.002,92691.0,92664.0,0.010802]
[1768315690941,0.02246462,92697.0,92668.0,0.003]
[1768315691147,0.00966662,92696.0,92668.0,0.003]
[1768315691345,0.01476018,92696.0,92668.0,0.003]
[1768315691532,0.010799,92687.0,92668.0,0.003]
[1768315691732,0.00509356,92696.0,92668.0,0.003]
[1768315691733,0.00966662,92686.0,92668.0,0.003]
[1768315692039,0.00966662,92675.0,92660.0,0.00011382]
[1768315693151,0.00966662,92685.0,92661.0,0.010802]
[1768315693442,0.010798,92694.0,92662.0,0.09716]
[1768315693743,0.010798,92694.0,92657.0,0.00013195]
[1768315693744,0.00966662,92674.0,92649.0,0.010804]
[1768315693951,0.00966662,92674.0,92644.0,0.00975377]
[1768315694145,0.00966662,92673.0,92644.0,0.00962182]
[1768315694340,0.00966662,92673.0,92660.0,0.001]
[1768315694537,0.001,92675.0,92660.0,0.001]
[1768315694745,0.00966662,92669.0,92639.0,0.010805]
[1768315695051,0.00966662,92666.0,92644.0,0.010804]
[1768315695239,7.565e-05,92674.0,92641.0,0.010805]
[1768315695434,7.565e-05,92674.0,92640.0,0.09716]
[1768315695840,0.00907565,92674.0,92650.0,0.010804]
[1768315696248,0.00925935,92668.0,92644.0,0.002]
[1768315696548,0.00925935,92668.0,92647.0,0.010804]
[1768315696748,0.00925935,92673.0,92641.0,0.00802865]
[1768315696943,0.00925935,92673.0,92653.0,0.010803]
[1768315697135,0.00807565,92674.0,92658.0,0.010803]
[1768315697333,0.00509356,92673.0,92658.0,0.010803]
[1768315697548,7.565e-05,92674.0,92662.0,0.010802]
[1768315697748,0.00925935,92692.0,92667.0,0.010802]
[1768315697951,0.00509356,92683.0,92667.0,0.010802]
[1768315698249,0.00925935,92692.0,92667.0,0.010802]
[1768315698250,0.00509356,92687.0,92667.0,0.0972]
[1768315698944,0.00925935,92671.0,92649.0,0.0972]
[1768315699155,0.00925935,92671.0,92643.0,0.0972]
[1768315699458,0.00925935,92671.0,92644.0,0.0972]
[1768315699640,0.00925935,92671.0,92645.0,0.010804]
[1768315699840,0.02006035,92670.0,92644.0,0.0972]
[1768315700039,0.00509356,92671.0,92644.0,0.0972]
[1768315700040,0.010802,92668.0,92644.0,0.0972]
[1768315700245,0.00925935,92669.0,92644.0,0.0972]
[1768315700443,0.00925935,92668.0,92644.0,0.0972]
[1768315701354,0.00925935,92668.0,92645.0,0.010804]
[1768315701554,0.00925935,92666.0,92644.0,0.0972]
[1768315701762,0.02006335,92645.0,92633.0,0.00539764]
[1768315702052,0.02006335,92645.0,92617.0,0.00267474]
[1768315702053,0.00925935,92644.0,92625.0,0.0972]
[1768315702347,0.00925935,92644.0,92625.0,0.04810644]
[1768315702556,0.1455638,92660.0,92625.0,0.04810644]
[1768315702557,0.00925935,92662.0,92626.0,0.00267393]
[1768315702759,0.00925935,92662.0,92635.0,0.00267393]
[1768315703153,0.00925935,92662.0,92642.0,0.010805]
[1768315703348,0.10716951,92673.0,92645.0,0.010804]
[1768315703349,0.1132302,92673.0,92645.0,0.010804]
[1768315703654,0.1455638,92670.0,92642.0,0.0972]
[1768315703852,0.002,92662.0,92642.0,0.0972]
[1768315704251,0.010798,92698.0,92650.0,0.00905698]
[1768315704452,0.107998,92697.0,92657.0,0.010803]
[1768315704751,0.010798,92695.0,92670.0,0.010801]
[1768315704954,0.010799,92692.0,92670.0,0.010801]
[1768315705254,0.1455638,92690.0,92665.0,0.0972]
[1768315705555,0.00925935,92680.0,92665.0,0.0972]
[1768315706055,0.004,92673.0,92665.0,0.0972]
[1768315706257,0.004,92673.0,92658.0,0.0972]
[1768315706650,0.010801,92676.0,92658.0,0.0972]
[1768315706960,0.00925935,92675.0,92665.0,0.002]
[1768315707545,0.002,92673.0,92658.0,0.0992]
[1768315708054,0.012801,92673.0,92658.0,0.002]
[1768315708358,0.002,92673.0,92658.0,0.002]
[1768315708543,0.012801,92673.0,92658.0,0.002]
[1768315708745,0.00925935,92672.0,92658.0,0.002]
[1768315708958,0.00925935,92672.0,92654.0,0.0972]
[1768315709256,0.00925935,92672.0,92665.0,0.002]
[1768315710159,0.006,92675.0,92665.0,0.002]
[1768315710459,0.003,92672.0,92654.0,0.0952]
[1768315711049,0.003,92672.0,92622.0,0.0972]
[1768315711050,0.00925935,92652.0,92622.0,0.0972]
[1768315711351,0.00925935,92652.0,92622.0,0.21423098]
[1768315711659,0.108003,92657.0,92622.0,0.21423098]
[1768315711660,0.010805,92635.0,92622.0,0.0972]
[1768315711851,0.1455638,92650.0,92622.0,0.0972]
[1768315711852,0.010806,92629.0,92622.0,0.0972]
[1768315712051,0.010805,92636.0,92622.0,0.0972]
[1768315712248,0.01922886,92646.0,92620.0,7.839e-05]
[1768315712449,0.00925935,92646.0,92620.0,7.839e-05]
[1768315712645,0.00925935,92646.0,92624.0,0.010807]
[1768315712960,0.00925935,92646.0,92620.0,7.839e-05]
[1768315713155,0.010806,92633.0,92620.0,7.839e-05]
[1768315713452,0.01922886,92633.0,92595.0,0.00237595]
[1768315713653,0.01125935,92635.0,92598.0,0.01375484]
[1768315713654,0.0972,92632.0,92598.0,0.01375484]
[1768315713855,0.15553331,92630.0,92595.0,0.00237595]
[1768315714054,0.00996951,92630.0,92595.0,0.00237595]
[1768315714255,0.010807,92619.0,92595.0,0.00237595]
[1768315714559,0.010808,92615.0,92595.0,0.00237595]
[1768315714754,0.1455638,92610.0,92595.0,8.8e-07]
[1768315714962,0.01000851,92618.0,92595.0,8.8e-07]
[1768315714963,0.010808,92611.0,92595.0,8.8e-07]
[1768315715156,0.00910383,92608.0,92595.0,8.8e-07]
[1768315715555,0.01902691,92608.0,92595.0,8.8e-07]
[1768315715759,0.01902691,92608.0,92568.0,0.02183564]
[1768315715760,0.00910383,92598.0,92568.0,0.02183564]
[1768315716057,0.00910383,92596.0,92575.0,0.0972]
[1768315716456,0.00910383,92596.0,92568.0,0.010813]
[1768315716660,0.00910383,92596.0,92571.0,0.0972]
[1768315716850,9.526e-05,92597.0,92569.0,0.00917982]
[1768315717056,9.526e-05,92597.0,92580.0,0.010812]
[1768315717251,0.00910383,92595.0,92575.0,0.010812]
[1768315717463,9.526e-05,92597.0,92579.0,0.04351531]
[1768315717776,0.010808,92615.0,92579.0,0.03270331]
[1768315717777,0.00910383,92615.0,92579.0,0.03270331]
[1768315718057,0.00910383,92615.0,92592.0,0.01081]
[1768315718267,1.5,92614.0,92582.0,0.0092595]
[1768315718450,1.5,92614.0,92594.0,0.01081]
[1768315718656,0.00910383,92613.0,92598.0,0.01081]
[1768315718859,0.010806,92633.0,92590.0,0.09724]
[1768315718860,0.00992308,92632.0,92606.0,0.010809]
[1768315719051,0.010802,92665.0,92611.0,0.010808]
[1768315719052,0.09724,92631.0,92611.0,0.010808]
[1768315719259,0.09724,92634.0,92611.0,0.007808]
[1768315719651,0.09724,92634.0,92611.0,0.010808]
[1768315719861,1.5,92633.0,92606.0,0.09724]
[1768315720063,0.09724,92634.0,92606.0,0.09724]
[1768315720369,0.01531956,92653.0,92614.0,0.0092595]
[1768315720556,0.010804,92651.0,92622.0,0.010807]
[1768315720862,0.00910383,92650.0,92622.0,0.010807]
[1768315721166,0.004,92632.0,92622.0,0.010807]
[1768315721367,0.004,92632.0,92623.0,0.09724]
[1768315721566,0.00910383,92650.0,92623.0,0.09724]
[1768315721567,0.00910383,92650.0,92627.0,0.010806]
[1768315721963,0.00910383,92650.0,92623.0,0.09724]
[1768315722163,0.00910383,92645.0,92622.0,0.003]
[1768315722463,0.004,92632.0,92623.0,0.012]
[1768315722657,0.00910383,92644.0,92623.0,0.012]
[1768315723457,0.09724,92652.0,92632.0,0.010806]
[1768315723657,0.01450031,92653.0,92623.0,0.012]
[1768315723868,0.00992308,92651.0,92623.0,0.012]
[1768315724057,0.00910383,92647.0,92624.0,0.010807]
[1768315724257,0.003,92645.0,92622.0,0.0172595]
[1768315724455,0.00539648,92653.0,92637.0,0.010805]
[1768315724657,0.00992308,92666.0,92638.0,0.09724]
[1768315724858,0.00992308,92644.0,92620.0,0.010807]
[1768315725063,0.00910383,92643.0,92629.0,0.010806]
[1768315725257,0.00910383,92643.0,92623.0,0.01]
[1768315725768,0.00992308,92645.0,92625.0,0.010807]
[1768315725769,0.00910383,92642.0,92625.0,0.010807]
[1768315725964,0.00910383,92642.0,92621.0,0.108047]
[1768315726173,0.00910383,92642.0,92603.0,0.0092595]
[1768315726174,0.00910383,92637.0,92612.0,0.108048]
[1768315726371,0.00910383,92637.0,92612.0,0.09724]
[1768315726559,0.00910383,92637.0,92587.0,0.81376]
[1768315726560,0.010804,92644.0,92614.0,0.010808]
[1768315726757,0.00910383,92641.0,92611.0,0.1064995]
[1768315726961,0.00910383,92641.0,92620.0,0.010807]
[1768315727175,0.00910383,92641.0,92616.0,0.010807]
[1768315727469,0.00910383,92641.0,92611.0,0.1064995]
[1768315727470,0.00910383,92641.0,92623.0,0.002]
[1768315727859,0.00910383,92641.0,92624.0,0.010807]
[1768315728064,0.007,92641.0,92620.0,0.002]
[1768315728269,0.007,92641.0,92629.0,0.010806]
[1768315728463,0.00910383,92651.0,92620.0,0.002]
[1768315728464,0.09724,92650.0,92630.0,0.010806]
[1768315728659,0.01990783,92649.0,92623.0,0.09724]
[1768315728867,0.008,92641.0,92623.0,0.09924]
[1768315729173,0.00910383,92640.0,92623.0,0.09924]
[1768315730264,0.00910383,92640.0,92623.0,0.09724]
[1768315730463,0.00910383,92640.0,92614.0,0.010808]
[1768315730671,0.00910383,92637.0,92615.0,0.09724]
[1768315730971,0.00910383,92644.0,92608.0,0.010808]
[1768315731170,0.00910383,92634.0,92610.0,0.010808]
[1768315731371,0.00992308,92637.0,92578.0,0.0092595]
[1768315731372,0.01902691,92619.0,92578.0,0.0092595]
[1768315731566,0.01081,92597.0,92578.0,0.09724]
[1768315731871,0.00910383,92604.0,92578.0,0.09724]
[1768315732173,0.00910383,92602.0,92579.0,0.04351531]
[1768315732363,0.00910383,92600.0,92579.0,0.03270331]
[1768315732965,0.00910383,92600.0,92585.0,0.010811]
[1768315733272,0.00992308,92613.0,92579.0,0.03270331]
[1768315733273,0.00992308,92613.0,92582.0,0.010811]
[1768315733469,0.09634,92612.0,92580.0,0.0092595]
[1768315733669,0.09634,92612.0,92594.0,0.01081]
[1768315733865,0.00539881,92613.0,92583.0,0.010811]
[1768315734076,0.00539881,92613.0,92586.0,0.0092595]
[1768315734664,0.00539881,92613.0,92585.0,0.005]
[1768315734876,0.003,92612.0,92595.0,0.01081]
[1768315735169,0.003,92612.0,92598.0,0.01081]
[1768315735367,0.00539881,92613.0,92594.0,0.002]
[1768315735573,8.1e-07,92613.0,92594.0,0.002]
[1768315735763,0.00910383,92633.0,92600.0,0.0092595]
[1768315735959,0.00992308,92637.0,92602.0,0.0092595]
[1768315736160,0.00910383,92642.0,92618.0,0.010807]
[1768315736366,0.00910383,92642.0,92607.0,0.0092595]
[1768315736675,0.00910383,92642.0,92615.0,0.010808]
[1768315736877,0.00910383,92639.0,92615.0,0.010808]
[1768315737065,0.006,92637.0,92615.0,0.010808]
[1768315737261,0.00910383,92634.0,92603.0,0.097049]
[1768315737468,0.00910383,92633.0,92603.0,0.097049]
[1768315737873,0.00910383,92633.0,92615.0,0.002]
[1768315738177,0.00910383,92641.0,92615.0,0.002]
[1768315738368,0.004,92642.0,92615.0,0.0112595]
[1768315738776,0.004,92642.0,92621.0,0.010807]
[1768315739374,0.003,92633.0,92620.0,0.010807]
[1768315739764,0.00910383,92632.0,92604.0,0.0092595]
[1768315740078,0.00910383,92632.0,92621.0,0.001]
[1768315740381,0.010805,92640.0,92609.0,0.0092595]
[1768315740882,0.003,92632.0,92609.0,0.0200675]
[1768315741082,0.010806,92631.0,92607.0,0.010809]
[1768315741277,0.013806,92632.0,92606.0,0.010809]
[1768315741476,0.013806,92632.0,92608.0,0.010808]
[1768315741679,0.010805,92636.0,92611.0,0.010808]
[1768315741977,0.010806,92631.0,92607.0,0.010809]
[1768315742181,0.00910383,92630.0,92608.0,0.09724]
[1768315742478,0.00910383,92620.0,92594.0,0.09724]
[1768315742683,0.00910383,92607.0,92583.0,0.09724]
[1768315743178,0.00910383,92617.0,92607.0,0.001]
[1768315743375,0.00910383,92613.0,92584.0,0.010811]
[1768315743575,0.00910383,92607.0,92585.0,0.09724]
[1768315743972,0.01510383,92607.0,92583.0,0.001]
[1768315744177,0.00910383,92606.0,92583.0,0.09724]
[1768315744377,0.006,92607.0,92583.0,0.09724]
[1768315744685,0.006,92607.0,92598.0,0.01081]
[1768315744883,0.006,92607.0,92595.0,0.01081]
[1768315745086,0.006,92607.0,92586.0,0.0092595]
[1768315745087,0.006,92607.0,92597.0,0.01081]
[1768315745280,0.006,92607.0,92594.0,0.01081]
[1768315745469,0.006,92607.0,92586.0,0.0092595]
[1768315745775,0.09724,92633.0,92612.0,0.010808]
[1768315745973,0.00968038,92644.0,92611.0,0.010808]
[1768315746178,0.09724,92642.0,92617.0,0.00987977]
[1768315746480,0.09724,92650.0,92620.0,0.00987977]
[1768315746678,0.09724,92650.0,92628.0,0.010806]
[1768315746882,1.50237441,92655.0,92620.0,0.00987977]
[1768315747082,0.09724,92654.0,92623.0,0.010807]
[1768315747289,0.09724,92654.0,92632.0,0.010806]
[1768315747681,0.09724,92654.0,92631.0,0.010806]
[1768315747890,0.00968038,92684.0,92644.0,0.00987977]
[1768315748086,0.010799,92688.0,92644.0,0.00987977]
[1768315748087,0.01915712,92674.0,92647.0,0.010804]
[1768315748292,0.01915712,92674.0,92652.0,0.010803]
[1768315748602,0.01915712,92674.0,92648.0,0.09724]
[1768315748603,1.5,92673.0,92648.0,0.09724]
[1768315749003,1.5,92673.0,92649.0,0.010804]
[1768315749294,0.00947674,92672.0,92648.0,0.09724]
[1768315749502,0.010801,92671.0,92648.0,0.09724]
[1768315749686,0.010801,92671.0,92647.0,0.01]
[1768315749889,0.00947674,92672.0,92648.0,0.09724]
[1768315750090,0.00947674,92672.0,92649.0,0.009]
[1768315750888,0.00947674,92667.0,92649.0,0.009]
[1768315751498,0.010802,92664.0,92646.0,0.09724]
[1768315751705,0.010802,92661.0,92647.0,0.09724]
[1768315752000,0.010802,92661.0,92635.0,0.00987977]
[1768315752001,0.00947674,92664.0,92645.0,0.08724]
[1768315752301,0.001,92672.0,92555.0,0.1081]
[1768315752302,0.001,92672.0,92648.0,0.010804]
[1768315752491,0.001,92667.0,92649.0,0.011]
[1768315753197,0.00947674,92667.0,92650.0,0.08724]
[1768315753397,0.001,92664.0,92645.0,0.012]
[1768315753595,0.001,92664.0,92646.0,0.09724]
[1768315753897,0.001,92664.0,92645.0,0.012]
[1768315754095,0.00056434,92663.0,92631.0,0.00987977]
[1768315754294,0.010803,92655.0,92632.0,0.09724]
[1768315754599,0.010803,92653.0,92632.0,0.09724]
[1768315754792,0.00056693,92651.0,92624.0,0.09724]
[1768315755099,0.010804,92649.0,92624.0,0.09724]
[1768315755290,0.09780693,92651.0,92624.0,0.09724]
[1768315755599,0.09780693,92651.0,92624.0,0.10705006]
[1768315755802,0.09724,92651.0,92629.0,0.010806]